fUSD/lending_fUSD_20250125
["ID","MTS","AMOUNT","RATE_DAILY","PERIOD"]
[350315439,1737783068656,-563.51,0.00018356,2]
[350315440,1737783068667,-560.94,0.00018356,2]
[350315441,1737783068678,-500.0,0.00018364,2]
[350315442,1737783068688,-170.46,0.00018395,2]
[350315443,1737783068697,-394.09903545,0.00018407,2]
[350315444,1737783068706,-1030.27332747,0.00018452,2]
[350315445,1737783068717,-369.32331874,0.00018493,2]
[350315446,1737783068727,-500.0,0.00018493,2]
[350315447,1737783068736,-500.0,0.00018493,2]
[350315448,1737783068746,-500.0,0.00018493,2]
[350315449,1737783068756,-500.0,0.00018493,2]
[350315450,1737783068767,-584.59,0.00018493,2]
[350315451,1737783068776,-646.22111789,0.00018493,2]
[350315452,1737783068786,-500.0,0.00018493,2]
[350315453,1737783068795,-500.0,0.00018493,2]
[350315454,1737783068805,-500.0,0.00018493,2]
[350315455,1737783068815,-500.0,0.00018493,2]
[350315456,1737783068830,-500.0,0.00018493,2]
[350315457,1737783068839,-500.0,0.00018493,2]
[350315458,1737783068849,-363.69624997,0.00018493,2]
[350315459,1737783068976,-500.0,0.00018493,2]
[350315460,1737783068987,-253.5413331,0.00018493,2]
[350315461,1737783068996,-500.0,0.00018493,2]
[350315462,1737783069006,-500.0,0.00018493,2]
[350315463,1737783069016,-544.45,0.00018493,2]
[350315464,1737783069025,-500.0,0.00018493,2]
[350315465,1737783069035,-500.0,0.00018493,2]
[350315466,1737783069044,-367.80107086,0.00018493,2]
[350315467,1737783069053,-500.0,0.00018493,2]
[350315468,1737783069063,-500.0,0.00018493,2]
[350315469,1737783069079,-361.54033748,0.00018493,2]
[350315470,1737783069089,-705.94,0.00018493,2]
[350315471,1737783069099,-522.06,0.00018493,2]
[350315472,1737783069109,-760.95,0.00018493,2]
[350315473,1737783069118,-500.0,0.00018493,2]
[350315474,1737783069128,-505.59,0.00018493,2]
[350315475,1737783069137,-553.66,0.00018493,2]
[350315476,1737783069147,-698.56,0.00018493,2]
[350315477,1737783069157,-1108.6,0.00018493,2]
[350315478,1737783069166,-651.44,0.00018493,2]
[350315479,1737783069175,-500.0,0.00018493,2]
[350315480,1737783069185,-592.76,0.00018493,2]
[350315481,1737783069195,-218.65260942,0.00018493,2]
[350315482,1737783069205,-639.65,0.00018493,2]
[350315483,1737783069215,-516.37,0.00018493,2]
[350315484,1737783069225,-763.03,0.00018493,2]
[350315485,1737783069235,-518.55,0.00018493,2]
[350315486,1737783069246,-1200.4,0.00018493,2]
[350315487,1737783069256,-1125.84,0.00018493,2]
[350315488,1737783069265,-500.0,0.00018493,2]
[350315489,1737783069274,-500.0,0.00018493,2]
[350315490,1737783069284,-291.06750102,0.00018493,2]
[350315491,1737783069293,-500.0,0.00018493,2]
[350315492,1737783069302,-802.79,0.00018493,2]
[350315493,1737783069312,-500.0,0.00018493,2]
[350315494,1737783069326,-961.8,0.00018493,2]
[350315495,1737783069335,-646.41120989,0.00018493,2]
[350315496,1737783069345,-516.52,0.00018493,2]
[350315497,1737783069354,-671.56,0.00018493,2]
[350315498,1737783069364,-895.01,0.00018493,2]
[350315499,1737783069373,-500.0,0.00018493,2]
[350315500,1737783069383,-716.74,0.00018493,2]
[350315501,1737783069392,-500.0,0.00018493,2]
[350315502,1737783069401,-500.0,0.00018493,2]
[350315503,1737783069411,-616.29770238,0.00018493,2]
[350315504,1737783069420,-1038.34,0.00018493,2]
[350315505,1737783069429,-1061.24,0.00018493,2]
[350315506,1737783069439,-782.07,0.00018493,2]
[350315507,1737783069449,-1520.72,0.00018493,2]
[350315508,1737783069459,-1256.58,0.00018493,2]
[350315509,1737783069468,-649.67,0.00018493,2]
[350315510,1737783069478,-500.0,0.00018493,2]
[350315511,1737783069488,-500.0,0.00018493,2]
[350315512,1737783069497,-197.27477516,0.00018493,2]
[350315513,1737783069507,-565.16,0.00018493,2]
[350315514,1737783069516,-708.27,0.00018493,2]
[350315515,1737783069526,-563.51,0.00018493,2]
[350315516,1737783069535,-560.94,0.00018493,2]
[350315517,1737783069545,-173.02,0.00018505,2]
[350315518,1737783069554,-1500.0,0.0001858,2]
[350315519,1737783069564,-1030.27332747,0.00018624,2]
[350315520,1737783069578,-317.45652044,0.0001863,2]
[350315521,1737783069588,-500.0,0.0001863,2]
[350315522,1737783069599,-268.4199456,0.0001863,2]
[350315523,1737783069611,-492.68776287,0.0001863,2]
[350315524,1737783069620,-584.59,0.0001863,2]
[350315525,1737783069629,-500.0,0.0001863,2]
[350315526,1737783069639,-500.0,0.0001863,2]
[350315527,1737783069649,-214.61401151,0.0001863,2]
[350315528,1737783069658,-500.0,0.0001863,2]
[350315529,1737783069668,-298.34902898,0.0001863,2]
[350315530,1737783069677,-500.0,0.0001863,2]
[350315531,1737783069690,-260.63052917,0.0001863,2]
[350315532,1737783069700,-500.0,0.0001863,2]
[350315533,1737783069710,-500.0,0.0001863,2]
[350315534,1737783069720,-544.45,0.0001863,2]
[350315535,1737783069729,-500.0,0.0001863,2]
[350315536,1737783069739,-500.0,0.0001863,2]
[350315537,1737783069749,-500.0,0.0001863,2]
[350315538,1737783069758,-381.85963375,0.0001863,2]
[350315539,1737783069768,-705.94,0.0001863,2]
[350315540,1737783069778,-522.06,0.0001863,2]
[350315541,1737783069788,-760.95,0.0001863,2]
[350315542,1737783069797,-500.0,0.0001863,2]
[350315543,1737783069807,-505.59,0.0001863,2]
[350315544,1737783069816,-553.66,0.0001863,2]
[350315545,1737783069832,-698.56,0.0001863,2]
[350315546,1737783069841,-1108.6,0.0001863,2]
[350315547,1737783069851,-651.44,0.0001863,2]
[350315548,1737783069860,-500.0,0.0001863,2]
[350315549,1737783069870,-592.76,0.0001863,2]
[350315550,1737783069880,-639.65,0.0001863,2]
[350315551,1737783069890,-516.37,0.0001863,2]
[350315552,1737783069900,-763.03,0.0001863,2]
[350315553,1737783069910,-518.55,0.0001863,2]
[350315554,1737783069920,-1200.4,0.0001863,2]
[350315555,1737783069930,-1125.84,0.0001863,2]
[350315556,1737783069940,-181.61150112,0.0001863,2]
[350315557,1737783069950,-151.04862405,0.0001863,2]
[350315558,1737783069959,-500.0,0.0001863,2]
[350315559,1737783069969,-802.79,0.0001863,2]
[350315560,1737783069979,-500.0,0.0001863,2]
[350315561,1737783069989,-961.8,0.0001863,2]
[350315562,1737783069999,-516.52,0.0001863,2]
[350315563,1737783070008,-671.56,0.0001863,2]
[350315564,1737783070018,-895.01,0.0001863,2]
[350315565,1737783070028,-180.29359677,0.0001863,2]
[350315566,1737783070038,-716.74,0.0001863,2]
[350315567,1737783070048,-500.0,0.0001863,2]
[350315568,1737783070057,-489.5869748,0.0001863,2]
[350315569,1737783070067,-1038.34,0.0001863,2]
[350315570,1737783070082,-1061.24,0.0001863,2]
[350315571,1737783070091,-782.07,0.0001863,2]
[350315572,1737783070102,-1520.72,0.0001863,2]
[350315573,1737783070111,-1256.58,0.0001863,2]
[350315574,1737783070121,-649.67,0.0001863,2]
[350315575,1737783070131,-500.0,0.0001863,2]
[350315576,1737783070141,-213.03651877,0.0001863,2]
[350315577,1737783070151,-565.16,0.0001863,2]
[350315578,1737783070161,-708.27,0.0001863,2]
[350315579,1737783070170,-563.51,0.0001863,2]
[350315580,1737783070180,-560.94,0.0001863,2]
[350315581,1737783070190,-17593.50217509,0.00018701,2]
[350315582,1737783070199,-1323.1,0.00018751,2]
[350315583,1737783070210,-500.0,0.00018767,2]
[350315584,1737783070220,-584.59,0.00018767,2]
[350315585,1737783070229,-310.45,0.00018767,2]
[350315586,1737783070239,-500.0,0.00018767,2]
[350315587,1737783070248,-596.24180913,0.00018767,2]
[350315588,1737783070258,-439.59329635,0.00018767,2]
[350315589,1737783070267,-405.86420956,0.00018767,2]
[350315590,1737783070277,-500.0,0.00018767,2]
[350315591,1737783070287,-544.45,0.00018767,2]
[350315592,1737783070297,-500.0,0.00018767,2]
[350315593,1737783070307,-500.0,0.00018767,2]
[350315594,1737783070316,-500.0,0.00018767,2]
[350315595,1737783070330,-705.94,0.00018767,2]
[350315596,1737783070340,-522.06,0.00018767,2]
[350315597,1737783070350,-760.95,0.00018767,2]
[350315598,1737783070359,-497.38055237,0.00018767,2]
[350315599,1737783070368,-505.59,0.00018767,2]
[350315600,1737783070379,-553.66,0.00018767,2]
[350315601,1737783070389,-698.56,0.00018767,2]
[350315602,1737783070399,-1108.6,0.00018767,2]
[350315603,1737783070408,-651.44,0.00018767,2]
[350315604,1737783070417,-500.0,0.00018767,2]
[350315605,1737783070427,-592.76,0.00018767,2]
[350315606,1737783070437,-639.65,0.00018767,2]
[350315607,1737783070447,-516.37,0.00018767,2]
[350315608,1737783070456,-763.03,0.00018767,2]
[350315609,1737783070466,-1200.4,0.00018767,2]
[350315610,1737783070476,-518.55,0.00018767,2]
[350315611,1737783070486,-1125.84,0.00018767,2]
[350315612,1737783070496,-500.0,0.00018767,2]
[350315613,1737783070506,-802.79,0.00018767,2]
[350315614,1737783070517,-500.0,0.00018767,2]
[350315615,1737783070527,-961.8,0.00018767,2]
[350315616,1737783070537,-516.52,0.00018767,2]
[350315617,1737783070547,-671.56,0.00018767,2]
[350315618,1737783070556,-895.01,0.00018767,2]
[350315619,1737783070565,-716.74,0.00018767,2]
[350315620,1737783070580,-472.72733735,0.00018767,2]
[350315621,1737783070589,-1038.34,0.00018767,2]
[350315622,1737783070603,-1061.24,0.00018767,2]
[350315623,1737783070613,-782.07,0.00018767,2]
[350315624,1737783070622,-1520.72,0.00018767,2]
[350315625,1737783070631,-1256.58,0.00018767,2]
[350315626,1737783070643,-649.67,0.00018767,2]
[350315627,1737783070652,-500.0,0.00018767,2]
[350315628,1737783070663,-565.16,0.00018767,2]
[350315629,1737783070672,-708.27,0.00018767,2]
[350315630,1737783070681,-563.51,0.00018767,2]
[350315631,1737783070690,-560.94,0.00018767,2]
[350315632,1737783070700,-2979.40057,0.0001877,2]
[350315633,1737783070709,-1030.27332747,0.00018797,2]
[350315634,1737783070719,-1738.76126495,0.000189,2]
[350315635,1737783070728,-151.89101716,0.00018904,2]
[350315636,1737783070738,-584.59,0.00018904,2]
[350315637,1737783070747,-500.0,0.00018904,2]
[350315638,1737783070757,-428.76,0.00018904,2]
[350315639,1737783070767,-544.45,0.00018904,2]
[350315640,1737783070777,-500.0,0.00018904,2]
[350315641,1737783070787,-449.07001783,0.00018904,2]
[350315642,1737783070797,-500.0,0.00018904,2]
[350315643,1737783070806,-705.94,0.00018904,2]
[350315644,1737783070816,-522.06,0.00018904,2]
[350315645,1737783070830,-760.95,0.00018904,2]
[350315646,1737783070839,-505.59,0.00018904,2]
[350315647,1737783070848,-553.66,0.00018904,2]
[350315648,1737783070858,-698.56,0.00018904,2]
[350315649,1737783070867,-1108.6,0.00018904,2]
[350315650,1737783070876,-651.44,0.00018904,2]
[350315651,1737783070886,-500.0,0.00018904,2]
[350315652,1737783070895,-592.76,0.00018904,2]
[350315653,1737783070905,-639.65,0.00018904,2]
[350315654,1737783070914,-516.37,0.00018904,2]
[350315655,1737783070924,-763.03,0.00018904,2]
[350315656,1737783070935,-1200.4,0.00018904,2]
[350315657,1737783070944,-518.55,0.00018904,2]
[350315658,1737783070953,-1125.84,0.00018904,2]
[350315659,1737783070963,-574.36765814,0.00018904,2]
[350315660,1737783070972,-802.79,0.00018904,2]
[350315661,1737783070982,-500.0,0.00018904,2]
[350315662,1737783070994,-961.8,0.00018904,2]
[350315663,1737783071003,-516.52,0.00018904,2]
[350315664,1737783071013,-671.56,0.00018904,2]
[350315665,1737783071023,-895.01,0.00018904,2]
[350315666,1737783071032,-716.74,0.00018904,2]
[350315667,1737783071042,-1038.34,0.00018904,2]
[350315668,1737783071051,-1061.24,0.00018904,2]
[350315669,1737783071061,-782.07,0.00018904,2]
[350315670,1737783071072,-1520.72,0.00018904,2]
[350315671,1737783071084,-1256.58,0.00018904,2]
[350315672,1737783071094,-649.67,0.00018904,2]
[350315673,1737783071102,-548.20034561,0.00018904,2]
[350315674,1737783071112,-565.16,0.00018904,2]
[350315675,1737783071121,-708.27,0.00018904,2]
[350315676,1737783071130,-563.51,0.00018904,2]
[350315677,1737783071140,-560.94,0.00018904,2]
[350315678,1737783071149,-1030.27332747,0.00018969,2]
[350315679,1737783071158,-500.77087357,0.00018972,2]
[350315680,1737783071168,-500.0,0.00018986,2]
[350315681,1737783071177,-1049.0175757,0.00019,2]
[350315682,1737783071187,-650.0,0.00019,2]
[350315683,1737783071197,-584.59,0.00019041,2]
[350315684,1737783071207,-286.43,0.00019041,2]
[350315685,1737783071216,-544.45,0.00019041,2]
[350315686,1737783071226,-500.0,0.00019041,2]
[350315687,1737783071235,-220.91837452,0.00019041,2]
[350315688,1737783071244,-705.94,0.00019041,2]
[350315689,1737783071254,-522.06,0.00019041,2]
[350315690,1737783071263,-760.95,0.00019041,2]
[350315691,1737783071272,-505.59,0.00019041,2]
[350315692,1737783071282,-553.66,0.00019041,2]
[350315693,1737783071401,-698.56,0.00019041,2]
[350315694,1737783071411,-1108.6,0.00019041,2]
[350315695,1737783071420,-651.44,0.00019041,2]
[350315696,1737783071436,-500.0,0.00019041,2]
[350315697,1737783071446,-592.76,0.00019041,2]
[350315698,1737783071456,-639.65,0.00019041,2]
[350315699,1737783071465,-516.37,0.00019041,2]
[350315700,1737783071475,-763.03,0.00019041,2]
[350315701,1737783071484,-1200.4,0.00019041,2]
[350315702,1737783071494,-518.55,0.00019041,2]
[350315703,1737783071504,-1125.84,0.00019041,2]
[350315704,1737783071514,-802.79,0.00019041,2]
[350315705,1737783071523,-500.0,0.00019041,2]
[350315706,1737783071533,-961.8,0.00019041,2]
[350315707,1737783071543,-516.52,0.00019041,2]
[350315708,1737783071552,-671.56,0.00019041,2]
[350315709,1737783071561,-895.01,0.00019041,2]
[350315710,1737783071571,-716.74,0.00019041,2]
[350315711,1737783071584,-1038.34,0.00019041,2]
[350315712,1737783071594,-1061.24,0.00019041,2]
[350315713,1737783071606,-782.07,0.00019041,2]
[350315714,1737783071616,-1520.72,0.00019041,2]
[350315715,1737783071624,-1256.58,0.00019041,2]
[350315716,1737783071634,-649.67,0.00019041,2]
[350315717,1737783071643,-565.16,0.00019041,2]
[350315718,1737783071653,-708.27,0.00019041,2]
[350315719,1737783071662,-563.51,0.00019041,2]
[350315720,1737783071671,-560.94,0.00019041,2]
[350315721,1737783071680,-232.82975545,0.00019069,2]
[350315722,1737783071690,-394.09903545,0.00019105,2]
[350315723,1737783071700,-1030.27332747,0.00019141,2]
[350315724,1737783071710,-584.59,0.00019178,2]
[350315725,1737783071719,-544.45,0.00019178,2]
[350315726,1737783071729,-500.0,0.00019178,2]
[350315727,1737783071739,-705.94,0.00019178,2]
[350315728,1737783071761,-522.06,0.00019178,2]
[350315729,1737783071771,-760.95,0.00019178,2]
[350315730,1737783071780,-505.59,0.00019178,2]
[350315731,1737783071790,-553.66,0.00019178,2]
[350315732,1737783071800,-698.56,0.00019178,2]
[350315733,1737783071809,-1108.6,0.00019178,2]
[350315734,1737783071819,-651.44,0.00019178,2]
[350315735,1737783071837,-500.0,0.00019178,2]
[350315736,1737783071846,-592.76,0.00019178,2]
[350315737,1737783071856,-639.65,0.00019178,2]
[350315738,1737783071864,-516.37,0.00019178,2]
[350315739,1737783071874,-763.03,0.00019178,2]
[350315740,1737783071884,-1200.4,0.00019178,2]
[350315741,1737783071893,-518.55,0.00019178,2]
[350315742,1737783071903,-1125.84,0.00019178,2]
[350315743,1737783071912,-802.79,0.00019178,2]
[350315744,1737783071921,-603.1280022,0.00019178,2]
[350315745,1737783071931,-961.8,0.00019178,2]
[350315746,1737783071940,-516.52,0.00019178,2]
[350315747,1737783071949,-671.56,0.00019178,2]
[350315748,1737783071958,-895.01,0.00019178,2]
[350315749,1737783071968,-716.74,0.00019178,2]
[350315750,1737783071977,-1038.34,0.00019178,2]
[350315751,1737783071987,-1061.24,0.00019178,2]
[350315752,1737783071996,-782.07,0.00019178,2]
[350315753,1737783072005,-1520.72,0.00019178,2]
[350315754,1737783072014,-1256.58,0.00019178,2]
[350315755,1737783072024,-649.67,0.00019178,2]
[350315756,1737783072033,-565.16,0.00019178,2]
[350315757,1737783072042,-708.27,0.00019178,2]
[350315758,1737783072051,-563.51,0.00019178,2]
[350315759,1737783072060,-560.94,0.00019178,2]
[350315760,1737783072069,-3791.34953571,0.000192,2]
[350315761,1737783072082,-403.54,0.00019284,2]
[350315762,1737783072092,-3040.26,0.000193,2]
[350315763,1737783072101,-1030.27332747,0.00019314,2]
[350315764,1737783072110,-1075.58,0.00019314,2]
[350315765,1737783072120,-584.59,0.00019315,2]
[350315766,1737783072129,-544.45,0.00019315,2]
[350315767,1737783072139,-383.41529832,0.00019315,2]
[350315768,1737783072148,-705.94,0.00019315,2]
[350315769,1737783072158,-522.06,0.00019315,2]
[350315770,1737783072167,-760.95,0.00019315,2]
[350315771,1737783072178,-505.59,0.00019315,2]
[350315772,1737783072189,-553.66,0.00019315,2]
[350315773,1737783072199,-698.56,0.00019315,2]
[350315774,1737783072208,-1108.6,0.00019315,2]
[350315775,1737783072217,-651.44,0.00019315,2]
[350315776,1737783072226,-500.0,0.00019315,2]
[350315777,1737783072236,-592.76,0.00019315,2]
[350315778,1737783072246,-639.65,0.00019315,2]
[350315779,1737783072255,-516.37,0.00019315,2]
[350315780,1737783072264,-763.03,0.00019315,2]
[350315781,1737783072274,-1200.4,0.00019315,2]
[350315782,1737783072283,-518.55,0.00019315,2]
[350315783,1737783072293,-1125.84,0.00019315,2]
[350315784,1737783072302,-802.79,0.00019315,2]
[350315785,1737783072312,-961.8,0.00019315,2]
[350315786,1737783072322,-516.52,0.00019315,2]
[350315787,1737783072335,-671.56,0.00019315,2]
[350315788,1737783072344,-895.01,0.00019315,2]
[350315789,1737783072355,-716.74,0.00019315,2]
[350315790,1737783072364,-1038.34,0.00019315,2]
[350315791,1737783072374,-1061.24,0.00019315,2]
[350315792,1737783072383,-782.07,0.00019315,2]
[350315793,1737783072392,-1520.72,0.00019315,2]
[350315794,1737783072401,-1256.58,0.00019315,2]
[350315795,1737783072412,-649.67,0.00019315,2]
[350315796,1737783072421,-565.16,0.00019315,2]
[350315797,1737783072430,-708.27,0.00019315,2]
[350315798,1737783072440,-563.51,0.00019315,2]
[350315799,1737783072450,-560.94,0.00019315,2]
[350315800,1737783072459,-17593.50217509,0.00019317,2]
[350315801,1737783072469,-1000.0,0.00019324,2]
[350315802,1737783072478,-292.83155053,0.00019346,2]
[350315803,1737783072488,-3336.58142826,0.00019346,2]
[350315804,1737783072498,-4556.6075184,0.00019347,2]
[350315805,1737783072507,-27969.15703631,0.00019351,2]
[350315806,1737783072517,-2183.2198301,0.00019355,2]
[350315807,1737783072527,-267.71671849,0.00019359,2]
[350315808,1737783072536,-4556.6075184,0.00019366,2]
[350315809,1737783072546,-75174.23243445,0.00019368,2]
[350315810,1737783072556,-75174.23243445,0.00019368,2]
[350315811,1737783072565,-1455.47988674,0.00019373,2]
[350315812,1737783072578,-5341.33311635,0.00019373,2]
[350315813,1737783072588,-3336.58142826,0.00019379,2]
[350315814,1737783072600,-267.71671849,0.0001938,2]
[350315815,1737783072610,-267.71671849,0.00019381,2]
[350315816,1737783072619,-5341.33311635,0.00019382,2]
[350315817,1737783072628,-3336.58142826,0.00019383,2]
[350315818,1737783072638,-200.0,0.00019387,2]
[350315819,1737783072648,-27969.15703631,0.00019389,2]
[350315820,1737783072659,-1455.47988674,0.00019391,2]
[350315821,1737783072669,-75174.23243445,0.00019392,2]
[350315822,1737783072679,-2147.51615954,0.00019393,2]
[350315823,1737783072689,-2183.2198301,0.00019394,2]
[350315824,1737783072700,-1455.47988674,0.00019395,2]
[350315825,1737783072709,-267.71671849,0.00019397,2]
[350315826,1737783072722,-4556.6075184,0.000194,2]
[350315827,1737783072731,-292.83155053,0.00019401,2]
[350315828,1737783072741,-1455.47988674,0.00019403,2]
[350315829,1737783072750,-27969.15703631,0.00019405,2]
[350315830,1737783072760,-292.83155053,0.0001941,2]
[350315831,1737783072770,-5341.33311635,0.00019414,2]
[350315832,1737783072780,-2147.51615954,0.00019419,2]
[350315833,1737783072790,-1323.1,0.0001942,2]
[350315834,1737783072800,-2183.2198301,0.0001942,2]
[350315835,1737783072810,-3336.58142826,0.00019422,2]
[350315836,1737783072819,-267.71671849,0.00019425,2]
[350315837,1737783072835,-2147.51615954,0.00019435,2]
[350315838,1737783072845,-2183.2198301,0.0001944,2]
[350315839,1737783072854,-292.83155053,0.00019441,2]
[350315840,1737783072863,-75174.23243445,0.00019443,2]
[350315841,1737783072873,-200.0,0.00019451,2]
[350315842,1737783072883,-584.59,0.00019452,2]
[350315843,1737783072892,-544.45,0.00019452,2]
[350315844,1737783072902,-705.94,0.00019452,2]
[350315845,1737783072911,-522.06,0.00019452,2]
[350315846,1737783072921,-760.95,0.00019452,2]
[350315847,1737783072930,-505.59,0.00019452,2]
[350315848,1737783072940,-553.66,0.00019452,2]
[350315849,1737783072951,-698.56,0.00019452,2]
[350315850,1737783072961,-1108.6,0.00019452,2]
[350315851,1737783072971,-651.44,0.00019452,2]
[350315852,1737783072981,-500.0,0.00019452,2]
[350315853,1737783072991,-592.76,0.00019452,2]
[350315854,1737783073001,-639.65,0.00019452,2]
[350315855,1737783073011,-516.37,0.00019452,2]
[350315856,1737783073021,-763.03,0.00019452,2]
[350315857,1737783073030,-1200.4,0.00019452,2]
[350315858,1737783073040,-518.55,0.00019452,2]
[350315859,1737783073050,-1125.84,0.00019452,2]
[350315860,1737783073060,-802.79,0.00019452,2]
[350315861,1737783073070,-961.8,0.00019452,2]
[350315862,1737783073085,-516.52,0.00019452,2]
[350315863,1737783073094,-671.56,0.00019452,2]
[350315864,1737783073104,-895.01,0.00019452,2]
[350315865,1737783073114,-716.74,0.00019452,2]
[350315866,1737783073124,-1038.34,0.00019452,2]
[350315867,1737783073134,-1061.24,0.00019452,2]
[350315868,1737783073144,-782.07,0.00019452,2]
[350315869,1737783073153,-1520.72,0.00019452,2]
[350315870,1737783073163,-1256.58,0.00019452,2]
[350315871,1737783073174,-649.67,0.00019452,2]
[350315872,1737783073184,-565.16,0.00019452,2]
[350315873,1737783073194,-708.27,0.00019452,2]
[350315874,1737783073204,-563.51,0.00019452,2]
[350315875,1737783073213,-27969.15703631,0.00019455,2]
[350315876,1737783073223,-5341.33311635,0.00019458,2]
[350315877,1737783073234,-1455.47988674,0.00019459,2]
[350315878,1737783073243,-4556.6075184,0.0001947,2]
[350315879,1737783073254,-2147.51615954,0.0001947,2]
[350315880,1737783073265,-2183.2198301,0.00019477,2]
[350315881,1737783073275,-5341.33311635,0.00019479,2]
[350315882,1737783073285,-1030.27332747,0.00019486,2]
[350315883,1737783073294,-27969.15703631,0.00019488,2]
[350315884,1737783073304,-4556.6075184,0.00019488,2]
[350315885,1737783073314,-75174.23243445,0.00019489,2]
[350315886,1737783073326,-292.83155053,0.00019492,2]
[350315887,1737783073336,-3336.58142826,0.00019496,2]
[350315888,1737783073346,-2147.51615954,0.00019496,2]
[350315889,1737783073361,-150.0,0.0001958,2]
[350315890,1737783073374,-584.59342219,0.00019589,2]
[350315891,1737783073394,-544.57161526,0.00019589,2]
[350315892,1737783073404,-706.0,0.00019589,2]
[350315893,1737783073414,-522.25457831,0.00019589,2]
[350315894,1737783073424,-761.10091225,0.00019589,2]
[350315895,1737783073434,-505.71,0.00019589,2]
[350315896,1737783073444,-553.66300249,0.00019589,2]
[350315897,1737783073455,-698.625,0.00019589,2]
[350315898,1737783073465,-1108.76081177,0.00019589,2]
[350315899,1737783073475,-651.60718188,0.00019589,2]
[350315900,1737783073485,-238.72032332,0.00019589,2]
[350315901,1737783073496,-592.89965619,0.00019589,2]
[350315902,1737783073506,-639.71422505,0.00019589,2]
[350315903,1737783073515,-516.40165048,0.00019589,2]
[350315904,1737783073526,-763.17260725,0.00019589,2]
[350315905,1737783073536,-1200.56924517,0.00019589,2]
[350315906,1737783073662,-518.69641059,0.00019589,2]
[350315907,1737783073683,-1125.87500566,0.00019589,2]
[350315908,1737783073693,-802.85273013,0.00019589,2]
[350315909,1737783073703,-961.86613129,0.00019589,2]
[350315910,1737783073712,-516.59191651,0.00019589,2]
[350315911,1737783073721,-671.72096015,0.00019589,2]
[350315912,1737783073731,-895.12320969,0.00019589,2]
[350315913,1737783073740,-716.83895514,0.00019589,2]
[350315914,1737783073749,-1038.372,0.00019589,2]
[350315915,1737783073759,-1061.38490231,0.00019589,2]
[350315916,1737783073769,-782.10363434,0.00019589,2]
[350315917,1737783073778,-1520.85018866,0.00019589,2]
[350315918,1737783073788,-1256.5926669,0.00019589,2]
[350315919,1737783073797,-649.82873101,0.00019589,2]
[350315920,1737783073807,-565.37325642,0.00019589,2]
[350315921,1737783073816,-708.39,0.00019589,2]
[350315922,1737783073828,-563.65967918,0.00019589,2]
[350315923,1737783073838,-150.0,0.00019638,2]
[350315924,1737783073847,-1030.27332747,0.00019659,2]
[350315925,1737783073857,-40012.92276854,0.000198,2]
[350315926,1737783073866,-394.09903545,0.00019804,2]
[350315927,1737783073876,-150.0,0.00019825,2]
[350315928,1737783073885,-1030.27332747,0.00019831,2]
[350315929,1737783073895,-14211.6663769,0.00019844,3]
[350315930,1737783073905,-150.0,0.00019846,2]
[350315931,1737783073914,-74968.61728753,0.0001987,2]
[350315932,1737783073923,-504.46381724,0.00019878,2]
[350315933,1737783073934,-5513.42827001,0.000199,7]
[350315934,1737783073943,-22354.81426204,0.000199,2]
[350315935,1737783073952,-2222.19252246,0.000199,2]
[350315936,1737783073961,-153.68810921,0.000199,3]
[350315937,1737783073971,-180.27134514,0.000199,2]
[350315938,1737783073980,-10330.10885012,0.000199,2]